bitfinex/quotes_BTCUSD_20241222
["timestamp","ask_amount","ask_price","bid_price","bid_amount"]
[1734877851402,0.1013084,95710.0,95682.0,0.041817]
[1734877851577,0.208982,95702.0,95681.0,0.0099014]
[1734877851793,0.01252878,95709.0,95682.0,0.1013084]
[1734877851945,0.00130616,95708.0,95682.0,0.041816]
[1734877852149,0.02021154,95708.0,95683.0,0.209022]
[1734877852352,0.3102794,95707.0,95682.0,0.041816]
[1734877852557,0.21027923,95706.0,95681.0,0.0099014]
[1734877852734,0.1013084,95705.0,95681.0,0.0099014]
[1734877852946,0.00130628,95704.0,95681.0,0.0099014]
[1734877853233,0.1013084,95703.0,95681.0,0.0099014]
[1734877853435,0.00130628,95702.0,95681.0,0.0099014]
[1734877853643,0.10261468,95702.0,95681.0,0.0099014]
[1734877853966,0.01892843,95701.0,95681.0,0.0099014]
[1734877854162,0.10261468,95700.0,95681.0,0.0099014]
[1734877854800,0.209001,95693.0,95681.0,0.0099014]
[1734877855008,0.00130635,95692.0,95681.0,0.0099014]
[1734877855172,0.208995,95696.0,95681.0,0.0099014]
[1734877855372,0.208999,95694.0,95681.0,0.0099014]
[1734877855595,0.00130635,95693.0,95681.0,0.0099014]
[1734877856242,0.00130634,95698.0,95681.0,0.0099014]
[1734877856437,0.001,95700.0,95681.0,0.1112098]
[1734877856652,0.001,95700.0,95689.0,0.209008]
[1734877856858,0.00130615,95709.0,95689.0,0.209008]
[1734877857060,0.001,95693.0,95689.0,0.209008]
[1734877857273,0.001,95693.0,95682.0,0.041816]
[1734877857447,0.001,95693.0,95681.0,0.2189264]
[1734877857652,0.00130627,95704.0,95681.0,0.2190121]
[1734877857837,0.1013084,95703.0,95681.0,0.2190121]
[1734877858030,0.02095111,95708.0,95681.0,0.0099871]
[1734877858231,0.02095111,95708.0,95681.0,0.1112955]
[1734877858519,0.02026973,95707.0,95681.0,0.1112955]
[1734877858738,0.02026973,95707.0,95682.0,0.03252275]
[1734877858739,0.208973,95706.0,95682.0,0.03252275]
[1734877858916,0.3102834,95705.0,95681.0,0.0099871]
[1734877859175,0.33055321,95705.0,95681.0,0.0099871]
[1734877859376,0.12157821,95705.0,95682.0,0.41805]
[1734877859581,0.12157821,95705.0,95683.0,0.03253825]
[1734877859877,0.001,95693.0,95683.0,0.03253825]
[1734877859993,0.208977,95704.0,95682.0,0.03253825]
[1734877860195,0.417965,95702.0,95682.0,0.03253825]
[1734877860425,0.10261462,95701.0,95681.0,0.0099871]
[1734877860627,0.10261462,95701.0,95682.0,0.03255631]
[1734877860834,0.417972,95700.0,95682.0,0.03255631]
[1734877861189,0.10261471,95699.0,95681.0,0.0099871]
[1734877861619,0.209006,95691.0,95681.0,0.0099871]
[1734877861820,0.20901,95689.0,95681.0,0.0099871]
[1734877862031,0.209014,95687.0,95681.0,0.0099871]
[1734877862180,0.00130646,95686.0,95681.0,0.0099871]
[1734877862798,0.1013084,95688.0,95681.0,0.0099871]
[1734877863002,0.10136247,95688.0,95681.0,0.0099871]
[1734877863379,5.407e-05,95688.0,95681.0,0.0099871]
[1734877863581,0.001,95686.0,95681.0,0.0099871]
[1734877863734,5.407e-05,95688.0,95681.0,0.0099871]
[1734877864136,0.00105407,95688.0,95681.0,0.0099871]
[1734877864320,0.00105407,95688.0,95682.0,0.24159634]
[1734877864321,5.407e-05,95688.0,95682.0,0.24159634]
[1734877864516,5.407e-05,95688.0,95683.0,0.03257134]
[1734877864715,0.001,95686.0,95684.0,0.03257134]
[1734877864921,0.001,95686.0,95681.0,0.0099871]
[1734877865125,0.001,95686.0,95682.0,0.03257447]
[1734877865503,0.001,95686.0,95682.0,0.24159847]
[1734877865802,0.001,95686.0,95683.0,0.03257447]
[1734877866007,0.001,95686.0,95683.0,0.24159547]
[1734877866209,0.001,95686.0,95684.0,0.03257447]
[1734877866412,0.001,95686.0,95685.0,0.209019]
[1734877866617,0.001,95686.0,95685.0,0.24159347]
[1734877866827,5.407e-05,95688.0,95685.0,0.24159347]
[1734877867029,5.407e-05,95688.0,95686.0,0.03257447]
[1734877867030,0.00105407,95688.0,95686.0,0.03257447]
[1734877867228,0.00105407,95688.0,95687.0,0.209014]
[1734877867355,5.407e-05,95688.0,95687.0,0.24158847]
[1734877867974,5.407e-05,95688.0,95687.0,0.48849687]
[1734877868175,0.0001716,95728.0,95708.0,0.329768]
[1734877868381,0.0001716,95728.0,95708.0,0.46365087]
[1734877868582,0.0001716,95728.0,95708.0,0.07817447]
[1734877868583,0.00022583,95709.0,95708.0,0.07817447]
[1734877868785,0.00022583,95709.0,95708.0,0.03257447]
[1734877869454,0.00022583,95709.0,95707.0,0.208971]
[1734877869663,0.00022583,95709.0,95708.0,0.03257447]
[1734877870498,0.00022583,95709.0,95705.0,0.09265799]
[1734877870702,0.00022583,95709.0,95706.0,0.0325839]
[1734877870874,0.00022583,95709.0,95705.0,0.09265799]
[1734877871113,0.00322583,95709.0,95697.0,0.09265799]
[1734877871314,0.00322583,95709.0,95698.0,0.03258658]
[1734877871523,0.00022583,95709.0,95697.0,0.09265799]
[1734877871750,0.00022583,95709.0,95705.0,0.001]
[1734877872154,0.00022583,95709.0,95696.0,0.208995]
[1734877872364,0.00322583,95709.0,95697.0,0.34288657]
[1734877872564,0.00322583,95709.0,95698.0,0.03258617]
[1734877872776,0.00322583,95709.0,95706.0,0.208973]
[1734877872984,0.00322583,95709.0,95708.0,0.208968]
[1734877873182,0.00322583,95709.0,95708.0,0.34286257]
[1734877874023,0.00022583,95709.0,95708.0,0.34286257]
[1734877874219,0.00222583,95709.0,95708.0,0.34286257]
[1734877874387,0.00222583,95709.0,95708.0,0.03258617]
[1734877874838,0.00222583,95709.0,95705.0,0.03258617]
[1734877875053,0.00022583,95709.0,95704.0,0.27980128]
[1734877875459,0.00022583,95709.0,95708.0,0.001]
[1734877875895,0.00022583,95709.0,95708.0,0.23537355]
[1734877876503,0.31050023,95709.0,95708.0,0.23537355]
[1734877876707,0.10153423,95709.0,95708.0,0.23537355]
[1734877876918,0.10153423,95709.0,95708.0,0.001]
[1734877876919,0.17653423,95709.0,95708.0,0.001]
[1734877877126,0.17784042,95709.0,95708.0,0.001]
[1734877877672,0.17984042,95709.0,95708.0,0.001]
[1734877877874,0.208984,95701.0,95700.0,0.09377613]
[1734877878099,0.208975,95706.0,95700.0,0.09377613]
[1734877878438,0.208981,95703.0,95692.0,0.09377613]
[1734877878641,0.07522583,95709.0,95692.0,0.09377613]
[1734877878642,0.31159664,95702.0,95692.0,0.09377613]
[1734877878759,0.20899,95699.0,95692.0,0.09377613]
[1734877878965,0.10261464,95702.0,95692.0,0.09377613]
[1734877878966,0.00130627,95698.0,95692.0,0.09377613]
[1734877879178,0.5192934,95697.0,95692.0,0.09377613]
[1734877879415,0.208997,95695.0,95694.0,0.09377613]
[1734877879758,0.5193024,95695.0,95694.0,0.09377613]
[1734877880358,0.3103054,95695.0,95687.0,0.09377613]
[1734877880654,0.209012,95688.0,95687.0,0.09377613]
[1734877880958,0.3103204,95688.0,95687.0,0.09377613]
[1734877881170,0.3853204,95688.0,95687.0,0.09377613]
[1734877881548,0.3853204,95688.0,95685.0,0.09377613]
[1734877881782,0.209016,95686.0,95685.0,0.09377613]
[1734877881915,0.3103244,95686.0,95685.0,0.09377613]
[1734877882321,0.1,95683.0,95682.0,0.1407499]
[1734877882524,0.20261498,95683.0,95682.0,0.1407499]
[1734877882726,0.1013084,95683.0,95682.0,8.57e-05]
[1734877882991,0.10261498,95683.0,95682.0,8.57e-05]
[1734877883227,0.00130654,95683.0,95682.0,8.57e-05]
[1734877883428,0.12377531,95683.0,95682.0,8.57e-05]
[1734877883636,0.02246691,95683.0,95682.0,8.57e-05]
[1734877883843,0.01040537,95689.0,95682.0,8.57e-05]
[1734877884050,0.01040537,95689.0,95687.0,0.209013]
[1734877884660,0.00022583,95709.0,95688.0,0.1013084]
[1734877885137,0.00022583,95709.0,95703.0,0.208978]
[1734877885591,0.00022583,95709.0,95705.0,0.075]
[1734877885803,0.0001716,95728.0,95706.0,0.1498084]
[1734877886024,0.0001716,95728.0,95727.0,0.208927]
[1734877886226,0.0001716,95728.0,95727.0,0.3102354]
[1734877887593,0.0001716,95728.0,95727.0,0.4337354]
[1734877887799,0.208822,95776.0,95728.0,0.208925]
[1734877888000,0.00130527,95775.0,95753.0,0.20887]
[1734877888222,0.00130527,95774.0,95753.0,0.20887]
[1734877888420,0.02062488,95771.0,95753.0,0.20887]
[1734877888624,0.00130527,95770.0,95753.0,0.20887]
[1734877889007,0.00130527,95775.0,95728.0,0.208925]
[1734877889210,0.00130527,95775.0,95727.0,0.1235]
[1734877889211,0.20886,95758.0,95729.0,0.1013084]
[1734877889428,0.00016339,95770.0,95729.0,0.1013084]
[1734877889633,0.00016339,95770.0,95744.0,0.14027492]
[1734877889895,0.00016339,95770.0,95768.0,0.208836]
[1734877890100,0.00016339,95770.0,95769.0,0.2248084]
[1734877890318,0.00016339,95770.0,95769.0,0.2198084]
[1734877890525,0.00016339,95770.0,95769.0,0.1185]
[1734877890935,0.00016339,95770.0,95769.0,0.2198084]
[1734877891578,0.00016339,95770.0,95769.0,0.2228084]
[1734877891785,0.0001716,95805.0,95779.0,0.208814]
[1734877891987,0.0001716,95805.0,95779.0,0.3101224]
[1734877892398,0.0001716,95805.0,95796.0,0.208776]
[1734877892601,0.0001716,95805.0,95796.0,0.3585844]
[1734877893185,0.0001716,95805.0,95796.0,0.4335844]
[1734877894022,0.0001716,95805.0,95804.0,0.208759]
[1734877894234,0.0001716,95805.0,95804.0,0.3100674]
[1734877894435,3.99230212,95811.0,95810.0,0.332246]
[1734877894636,3.99230212,95811.0,95810.0,0.7835544]
[1734877894764,3.73610212,95811.0,95810.0,0.83224847]
[1734877894964,3.56710212,95811.0,95810.0,0.73138129]
[1734877895174,3.51720212,95811.0,95810.0,0.73138129]
[1734877895396,3.24334742,95811.0,95810.0,0.73138129]
[1734877895599,3.18072542,95811.0,95810.0,0.73138129]
[1734877895762,3.17852542,95811.0,95810.0,0.73138129]
[1734877895960,3.13691479,95811.0,95810.0,0.72638129]
[1734877896546,2.95214885,95811.0,95810.0,1.27088129]
[1734877896748,2.87157303,95811.0,95810.0,1.24518722]
[1734877896982,0.22941877,95811.0,95810.0,1.26896191]
[1734877897171,0.21620013,95811.0,95810.0,1.26896191]
[1734877897595,0.19532613,95811.0,95810.0,1.26896191]
[1734877897772,0.15357813,95811.0,95810.0,1.24632909]
[1734877897969,0.08565001,95811.0,95810.0,1.27201496]
[1734877898400,0.0001714,95876.0,95823.0,0.808718]
[1734877898561,0.0001714,95876.0,95858.0,0.1]
[1734877898739,0.0001714,95876.0,95851.0,0.208656]
[1734877898740,0.0001714,95876.0,95865.0,0.2013084]
[1734877899751,0.0013347,95866.0,95865.0,0.1013084]
[1734877900954,0.0003347,95866.0,95865.0,0.1013084]
[1734877901148,0.0003347,95866.0,95835.0,0.1]
[1734877901353,0.208628,95864.0,95844.0,0.1013084]
[1734877901591,0.0483,95864.0,95844.0,0.1013084]
[1734877901979,0.0483,95864.0,95844.0,0.3099784]
[1734877902479,0.0573,95864.0,95844.0,0.5196484]
[1734877902833,0.0483,95864.0,95844.0,0.1013084]
[1734877903243,0.04826,95864.0,95844.0,0.1013084]
[1734877903856,0.04826,95864.0,95853.0,0.208652]
[1734877904168,0.04826,95864.0,95854.0,0.1013084]
[1734877904368,0.04826,95864.0,95855.0,0.417296]
[1734877904572,0.04826,95864.0,95856.0,0.1013084]
[1734877904773,0.05326,95864.0,95856.0,0.1013084]
[1734877905166,0.04826,95864.0,95857.0,0.208644]
[1734877905311,0.04826,95864.0,95859.0,0.208639]
[1734877905512,0.04826,95864.0,95861.0,0.208635]
[1734877905716,0.0003347,95866.0,95863.0,0.3099394]
[1734877905944,0.0003347,95866.0,95865.0,0.208626]
[1734877906143,0.0003347,95866.0,95865.0,0.3099344]
[1734877906545,0.0003347,95866.0,95865.0,0.4099344]
[1734877906946,0.0003347,95866.0,95865.0,0.3099344]
[1734877907149,0.0003347,95866.0,95865.0,0.4099344]
[1734877907780,0.0003347,95866.0,95865.0,0.6599344]
[1734877908062,7e-07,95866.0,95865.0,0.6829344]
[1734877908291,7e-07,95866.0,95865.0,0.6839344]
[1734877908617,0.2087222,95900.0,95875.0,0.208604]
[1734877908791,0.2087222,95900.0,95875.0,0.3099124]
[1734877908997,0.0453,95881.0,95875.0,0.1013084]
[1734877909196,0.0820714,95876.0,95865.0,0.00054298]
[1734877909557,0.0820714,95876.0,95866.0,0.1013084]
[1734877910385,0.0820714,95876.0,95866.0,0.3099314]
[1734877910598,0.0820714,95876.0,95867.0,0.208622]
[1734877910780,0.0820714,95876.0,95868.0,0.1013084]
[1734877911521,0.0789714,95876.0,95868.0,0.1013084]
[1734877911732,0.0809714,95876.0,95868.0,0.1013084]
[1734877911979,0.0789714,95876.0,95868.0,0.1013084]
[1734877912338,0.0454712,95900.0,95875.0,0.1013084]
[1734877912542,0.0454712,95900.0,95889.0,0.208574]
[1734877912745,0.0454712,95900.0,95891.0,0.20857]
[1734877912976,0.0454712,95900.0,95892.0,0.1013084]
[1734877913193,0.0454712,95900.0,95893.0,0.208565]
[1734877913415,0.0454712,95900.0,95895.0,0.208561]
[1734877913553,0.0454712,95900.0,95896.0,0.1013084]
[1734877913754,0.0001712,95900.0,95897.0,0.208557]
[1734877913960,0.0001712,95900.0,95898.0,0.1013084]
[1734877914170,0.0001712,95900.0,95899.0,0.3098604]
[1734877914626,0.00033441,95900.0,95899.0,0.3098604]
[1734877915384,0.00633441,95900.0,95899.0,0.3098604]
[1734877915943,0.00033441,95900.0,95899.0,0.3098604]
[1734877916140,0.00133441,95900.0,95899.0,0.3158604]
[1734877916341,0.00133441,95900.0,95899.0,0.4158604]
[1734877916542,0.00033441,95900.0,95899.0,0.5598604]
[1734877917188,0.00033441,95900.0,95899.0,0.6598604]
[1734877918033,0.00133441,95900.0,95899.0,0.6828604]
[1734877918186,0.00033441,95900.0,95899.0,0.6828604]
[1734877918410,4.1e-07,95900.0,95899.0,0.2513084]
[1734877918570,0.00100041,95900.0,95899.0,0.2573084]
[1734877918775,4.1e-07,95900.0,95899.0,0.2513084]
[1734877919080,0.00100041,95900.0,95899.0,0.2603084]
[1734877919489,4.1e-07,95900.0,95899.0,0.2513084]
[1734877919737,0.00100041,95900.0,95899.0,0.2513084]
[1734877920932,4.1e-07,95900.0,95899.0,0.2513084]
[1734877921331,0.00100041,95900.0,95899.0,0.3513084]
[1734877921649,4.1e-07,95900.0,95899.0,0.4513084]
[1734877922060,0.00100041,95900.0,95899.0,0.4513084]
[1734877922243,4.1e-07,95900.0,95899.0,0.4513084]
[1734877922740,0.00100041,95900.0,95899.0,0.4513084]
[1734877922962,0.00100041,95900.0,95899.0,0.4743084]
[1734877922963,4.1e-07,95900.0,95899.0,0.4743084]
[1734877923874,4.1e-07,95900.0,95899.0,0.2513084]
[1734877924048,4.1e-07,95900.0,95899.0,0.1013084]
[1734877924254,0.00100041,95900.0,95899.0,0.1083084]
[1734877924652,4.1e-07,95900.0,95899.0,0.1013084]
[1734877924850,0.00100041,95900.0,95899.0,0.1083084]
[1734877925053,0.00100041,95900.0,95899.0,0.007]
[1734877925256,0.208593,95881.0,95863.0,0.2087155]
[1734877925402,0.208593,95881.0,95864.0,0.1013084]
[1734877925601,0.208584,95885.0,95864.0,0.1013084]
[1734877925803,0.208564,95894.0,95864.0,0.1013084]
[1734877925966,0.01628839,95902.0,95864.0,0.1013084]
[1734877926165,0.003,95900.0,95867.0,0.1013084]
[1734877926412,0.003,95900.0,95876.0,0.1013084]
[1734877926617,0.003,95900.0,95893.0,0.208563]
[1734877926831,0.003,95900.0,95895.0,0.208561]
[1734877927058,0.003,95900.0,95896.0,0.1013084]
[1734877927639,0.003,95900.0,95897.0,0.208557]
[1734877927839,0.0477,95903.0,95900.0,0.20855]
[1734877928062,0.0477,95903.0,95902.0,0.208546]
[1734877928260,0.0477,95903.0,95902.0,0.3098544]
[1734877928828,0.0781,95922.0,95902.0,0.4598544]
[1734877929028,0.0001312,95904.0,95903.0,0.3513084]
[1734877929358,0.0001312,95904.0,95903.0,0.50662552]
[1734877929705,0.0001312,95904.0,95903.0,0.40662552]
[1734877929820,0.0001312,95904.0,95903.0,0.50662552]
[1734877930025,1.0001312,95904.0,95903.0,0.50662552]
[1734877930233,0.7822183,95904.0,95903.0,0.61632552]
[1734877930450,0.64668181,95904.0,95903.0,1.16082552]
[1734877930646,0.64668181,95904.0,95903.0,1.56082552]
[1734877931068,0.64668181,95904.0,95903.0,1.16082552]
[1734877931374,0.61297381,95904.0,95903.0,1.16182552]
[1734877931593,0.54241181,95904.0,95903.0,1.16082552]
[1734877932062,0.54341181,95904.0,95903.0,1.16682552]
[1734877932372,0.54241181,95904.0,95903.0,1.16082552]
[1734877932497,0.45899581,95904.0,95903.0,1.16082552]
[1734877932703,0.40866161,95904.0,95903.0,1.46782552]
[1734877933051,0.40766161,95904.0,95903.0,1.46082552]
[1734877933245,0.40866161,95904.0,95903.0,1.46782552]
[1734877933445,0.38280761,95904.0,95903.0,1.46782552]
[1734877933647,0.29939161,95904.0,95903.0,1.46782552]
[1734877934056,0.28886612,95904.0,95903.0,1.35812552]
[1734877934260,0.25670491,95904.0,95903.0,1.35812552]
[1734877934464,0.1084773,95904.0,95903.0,1.35812552]
[1734877934708,0.0657793,95904.0,95903.0,1.35112552]
[1734877934913,0.0667793,95904.0,95903.0,1.35712552]
[1734877935128,0.02079983,95904.0,95903.0,1.35112552]
[1734877935486,0.0479414,95962.0,95945.0,0.558452]
[1734877935690,0.00033481,95946.0,95945.0,0.5827604]
[1734877935889,0.00033481,95946.0,95945.0,0.5597604]
[1734877936092,0.00033481,95946.0,95945.0,0.6597604]
[1734877936288,0.00033481,95946.0,95945.0,0.6827604]
[1734877936853,0.00033481,95946.0,95945.0,0.71497489]
[1734877937238,8.1e-07,95946.0,95945.0,0.71497489]
[1734877937444,8.1e-07,95946.0,95945.0,0.51497489]
[1734877937738,8.1e-07,95946.0,95945.0,0.6827604]
[1734877937939,0.00500081,95946.0,95945.0,0.6827604]
[1734877938286,8.1e-07,95946.0,95945.0,0.6827604]
[1734877938525,8.1e-07,95946.0,95945.0,0.71497145]
[1734877939106,6.1e-07,95962.0,95961.0,0.373]
[1734877939311,6.1e-07,95962.0,95961.0,0.50651945]
[1734877939508,2.1e-07,95976.0,95975.0,0.431387]
[1734877939706,0.0781,96023.0,95995.0,0.458344]
[1734877939918,0.0781,96023.0,95995.0,0.59186345]
[1734877940119,0.0781,96023.0,95995.0,0.71486345]
[1734877940120,0.00071576,95996.0,95995.0,0.71486345]
[1734877940723,0.00071576,95996.0,95995.0,0.69186345]
[1734877941124,0.00071576,95996.0,95995.0,0.6596524]
[1734877941328,0.00171576,95996.0,95995.0,0.6686524]
[1734877941792,0.00071576,95996.0,95995.0,0.6826524]
[1734877942003,0.00171576,95996.0,95995.0,0.74919541]
[1734877942231,7.6e-07,95996.0,95995.0,0.74919541]
[1734877942404,7.6e-07,95996.0,95995.0,0.64919541]
[1734877942602,7.6e-07,95996.0,95995.0,0.5676524]
[1734877942806,7.6e-07,95996.0,95995.0,0.4676524]
[1734877943003,7.6e-07,95996.0,95995.0,0.5676524]
[1734877943242,0.12620076,95996.0,95995.0,0.1093084]
[1734877943638,0.1262,95996.0,95995.0,0.3096524]
[1734877944000,0.1272,95996.0,95995.0,0.3176524]
[1734877944203,0.001,95996.0,95995.0,0.3176524]
[1734877944404,0.0779,96018.0,95995.0,0.5179964]
[1734877944594,0.00033471,95999.0,95998.0,0.2513084]
[1734877944790,0.00033471,95999.0,95998.0,0.2743084]
[1734877946054,0.00033471,95999.0,95998.0,0.2513084]
[1734877946266,0.00033471,95999.0,95998.0,0.1013084]
[1734877946465,0.04863471,95999.0,95998.0,0.1013084]
[1734877946641,0.12653471,95999.0,95998.0,0.1013084]
[1734877946845,0.12653471,95999.0,95976.0,0.208385]
[1734877947054,0.12653471,95999.0,95977.0,0.1013084]
[1734877947608,0.13153471,95999.0,95977.0,0.1013084]
[1734877947814,0.12653471,95999.0,95985.0,0.208364]
[1734877947943,0.12653471,95999.0,95986.0,0.1013084]
[1734877948148,0.12753471,95999.0,95986.0,0.1013084]
[1734877948328,0.12653471,95999.0,95987.0,0.15]
[1734877948535,0.12653471,95999.0,95995.0,0.208344]
[1734877948736,0.12653471,95999.0,95997.0,0.208339]
[1734877948945,0.12653471,95999.0,95994.0,0.15]
[1734877949181,0.12653471,95999.0,95960.0,0.023]
[1734877949388,0.12653471,95999.0,95981.0,0.15]
[1734877949589,0.208337,95998.0,95983.0,0.15]
[1734877949879,0.00130207,95997.0,95956.0,0.01061224]
[1734877950060,0.208378,95980.0,95957.0,0.3097344]
[1734877950308,0.1,95982.0,95957.0,0.1013084]
[1734877950434,0.208389,95975.0,95957.0,0.1013084]
[1734877950636,0.0483,95973.0,95957.0,0.1013084]
[1734877951060,0.1,95967.0,95938.0,0.208466]
[1734877951265,0.20842,95960.0,95945.0,0.1013938]
[1734877951893,0.1262,95961.0,95946.0,0.1013084]
[1734877952091,0.1262,95961.0,95958.0,0.208424]
[1734877952325,0.1262,95961.0,95960.0,0.20842]
[1734877952495,0.1262,95961.0,95960.0,0.3097284]
[1734877952699,0.1262,95961.0,95960.0,0.1013084]
[1734877953213,0.1262,95961.0,95958.0,0.00054416]
[1734877954018,0.20842,95960.0,95958.0,0.00054416]
[1734877954225,0.20842,95960.0,95958.0,0.00754416]
[1734877954436,0.00130263,95959.0,95945.0,8.54e-05]
[1734877954891,0.1,95940.0,95916.0,0.01026997]
[1734877955096,0.1,95910.0,95899.0,0.00024871]
[1734877955215,0.1,95908.0,95900.0,0.1013084]
[1734877955411,0.1,95900.0,95899.0,0.00024871]
[1734877955829,0.1,95900.0,95865.0,0.01087386]
[1734877955830,0.208552,95899.0,95877.0,0.09313676]
[1734877956051,0.308565,95893.0,95878.0,0.1013084]
[1734877956433,0.1,95894.0,95885.0,0.208581]
[1734877956706,0.208571,95891.0,95877.0,0.09313676]
[1734877956881,0.1,95893.0,95877.0,0.09313676]
[1734877957316,0.1,95882.0,95876.0,0.00016321]
[1734877957491,0.1262,95880.0,95876.0,0.00016321]
[1734877957698,0.1,95877.0,95876.0,0.00016321]
[1734877958768,0.208628,95864.0,95839.0,0.208681]
[1734877958976,0.208628,95864.0,95863.0,0.00062848]
[1734877959530,0.208659,95850.0,95823.0,0.208717]
[1734877959668,0.208674,95843.0,95820.0,8.55e-05]
[1734877959876,0.1262,95849.0,95821.0,0.1013084]
[1734877960080,0.1262,95849.0,95847.0,0.208665]
[1734877960524,0.1262,95849.0,95827.0,0.1013084]
[1734877960738,0.1262,95849.0,95840.0,0.20868]
[1734877960955,0.1262,95849.0,95847.0,0.208665]
[1734877961157,0.1262,95849.0,95848.0,0.1013084]
[1734877961158,0.1272,95849.0,95848.0,0.1013084]
[1734877961324,0.1262,95849.0,95848.0,0.1013084]
[1734877961540,0.1262,95849.0,95843.0,0.15]
[1734877961741,0.1282,95849.0,95845.0,0.15]
[1734877961954,0.1262,95849.0,95846.0,0.3099764]
[1734877962316,0.1262,95849.0,95845.0,0.15]
[1734877962746,0.1262,95849.0,95799.0,0.308768]
[1734877962747,0.1,95847.0,95799.0,0.308768]
[1734877962942,0.1,95847.0,95830.0,0.208701]
[1734877963167,0.308668,95846.0,95830.0,0.1013084]
[1734877963371,0.1,95846.0,95831.0,0.1013084]
[1734877963591,0.1,95846.0,95839.0,0.208682]
[1734877964294,0.1,95846.0,95834.0,0.208694]
[1734877964538,0.1,95846.0,95836.0,0.208689]
[1734877964699,0.103,95846.0,95837.0,0.1013084]
[1734877964945,0.1,95846.0,95837.0,0.1013084]
[1734877965147,0.107,95846.0,95839.0,0.001]
[1734877965342,0.007,95846.0,95840.0,0.5186694]
[1734877965945,0.007,95846.0,95839.0,0.001]
[1734877966097,0.20997426,95845.0,95839.0,0.001]
[1734877966315,0.20867,95845.0,95839.0,0.001]
[1734877966520,0.107,95846.0,95839.0,0.001]
[1734877967868,0.1,95846.0,95835.0,0.208691]
[1734877968063,0.0761,95868.0,95849.0,0.15]
[1734877968181,0.0761,95868.0,95814.0,0.0785]
[1734877968182,0.1,95861.0,95850.0,0.1013084]
[1734877968382,0.1,95859.0,95850.0,0.1013084]
[1734877968593,0.1,95859.0,95844.0,0.208672]
[1734877968844,0.007,95846.0,95839.0,0.001]
[1734877969074,0.1,95852.0,95840.0,0.3099894]
[1734877969286,0.1,95852.0,95835.0,0.20869]
[1734877969485,0.1,95852.0,95837.0,0.358687]
[1734877969690,0.1,95856.0,95839.0,0.15]
[1734877969890,0.1,95856.0,95840.0,0.1013084]
[1734877970122,0.1,95856.0,95841.0,0.15]
[1734877970316,0.208671,95845.0,95824.0,0.208714]
[1734877970664,0.208671,95845.0,95803.0,8.56e-05]
[1734877970665,0.1,95845.0,95829.0,0.208704]
[1734877970874,0.1,95845.0,95839.0,0.208681]
[1734877971066,0.208644,95857.0,95839.0,0.208681]
[1734877971067,0.002,95846.0,95839.0,0.208681]
[1734877971406,0.1,95850.0,95845.0,0.208669]
[1734877971610,0.1,95849.0,95839.0,0.208681]
[1734877971871,0.001,95845.0,95840.0,0.1013084]
[1734877972085,0.1,95849.0,95841.0,0.208678]
[1734877972279,0.1,95849.0,95830.0,0.15]
[1734877972518,0.009,95846.0,95839.0,0.001]
[1734877972685,0.1,95849.0,95832.0,0.15]
[1734877972686,0.20996716,95848.0,95832.0,0.15]
[1734877972888,0.00130416,95848.0,95830.0,0.417403]
[1734877973043,0.109,95845.0,95840.0,0.001]
[1734877973244,0.1,95844.0,95840.0,0.001]
[1734877973734,0.009,95845.0,95840.0,0.001]
[1734877973934,0.1,95844.0,95840.0,0.001]
[1734877974068,0.009,95845.0,95840.0,0.001]
[1734877974263,0.223,95847.0,95836.0,0.208689]
[1734877974465,0.1,95844.0,95839.0,8.55e-05]
[1734877975156,0.223,95847.0,95840.0,0.208681]
[1734877975351,0.1,95845.0,95839.0,8.55e-05]
[1734877975850,0.208676,95842.0,95839.0,0.0010855]
[1734877976051,0.1,95842.0,95839.0,0.0010855]
[1734877976205,0.1,95842.0,95839.0,8.55e-05]
[1734877977513,0.00130421,95841.0,95839.0,8.55e-05]
[1734877977873,0.2013084,95840.0,95839.0,8.55e-05]
[1734877978206,0.1,95821.0,95820.0,8.55e-05]
[1734877978417,0.355622,95821.0,95820.0,8.55e-05]
[1734877979383,0.208759,95804.0,95767.0,8.56e-05]
[1734877979591,0.384859,95804.0,95780.0,0.0107466]
[1734877979788,0.5330674,95804.0,95780.0,8.56e-05]
[1734877980259,0.208801,95785.0,95780.0,8.56e-05]
[1734877980439,0.208761,95803.0,95767.0,8.56e-05]
[1734877980440,0.20882,95776.0,95767.0,8.56e-05]
[1734877980587,0.1,95777.0,95740.0,0.208898]
[1734877980588,0.1,95763.0,95740.0,0.2081548]
[1734877980803,0.308853,95761.0,95742.0,0.208894]
[1734877981009,0.1,95749.0,95736.0,0.208906]
[1734877981210,0.1,95749.0,95737.0,4e-05]
[1734877981442,0.10130551,95748.0,95731.0,4e-05]
[1734877981649,0.1,95743.0,95731.0,4e-05]
[1734877981869,0.1,95730.0,95715.0,0.208953]
[1734877982072,0.1,95721.0,95715.0,0.208953]
[1734877982282,0.1,95721.0,95716.0,0.00229636]
[1734877982625,0.1,95715.0,95698.0,0.20899]
[1734877982830,0.1,95709.0,95704.0,0.1013084]
[1734877983031,0.1279,95720.0,95691.0,0.209004]
[1734877983032,0.1,95704.0,95691.0,0.209004]
[1734877983250,0.1,95704.0,95677.0,0.209034]
[1734877983450,0.1,95704.0,95684.0,0.209019]
[1734877983659,0.1,95704.0,95691.0,0.209005]
[1734877983836,0.1,95704.0,95703.0,0.00107]
[1734877984057,0.1,95704.0,95703.0,7e-05]
[1734877984058,0.10054202,95704.0,95703.0,7e-05]
[1734877985283,0.1,95701.0,95671.0,8.56e-05]
[1734877985640,0.1,95689.0,95671.0,8.56e-05]
[1734877985838,0.1279,95700.0,95688.0,0.1013941]
[1734877986169,0.00054202,95704.0,95703.0,0.001]
[1734877986435,0.00054202,95704.0,95700.0,0.208985]
[1734877986642,0.00054202,95704.0,95702.0,0.208982]
[1734877986858,0.00054202,95704.0,95703.0,0.2743084]
[1734877987838,0.00154202,95704.0,95703.0,0.1243084]
[1734877988040,0.00154202,95704.0,95702.0,0.209982]
[1734877988041,0.00154202,95704.0,95702.0,0.001]
[1734877988241,0.00154202,95704.0,95703.0,8.55e-05]
[1734877988462,0.00154202,95704.0,95703.0,0.1243939]
[1734877989052,0.00054202,95704.0,95703.0,0.1243939]
[1734877989428,0.00154202,95704.0,95703.0,0.2763939]
[1734877989836,0.00054202,95704.0,95703.0,0.2743939]
[1734877990044,0.00154202,95704.0,95703.0,0.2773939]
[1734877990429,0.00054202,95704.0,95703.0,0.2743939]
[1734877990666,0.00154202,95704.0,95703.0,0.2773939]